fUST/lending_fUST_20240820
["ID","MTS","AMOUNT","RATE_DAILY","PERIOD"]
[335339062,1724127047358,-238.796923,0.0001639,2]
[335339063,1724127047367,-151.0,0.0001639,2]
[335339064,1724127047376,-238.796923,0.0001639,2]
[335339065,1724127047386,-291.400001,0.0001639,2]
[335339066,1724127047395,-291.400001,0.0001639,2]
[335339067,1724127047404,-153.538972,0.0001639,2]
[335339068,1724127047413,-295.135181,0.0001639,2]
[335339069,1724127047423,-295.135181,0.0001639,2]
[335339070,1724127047433,-151.0,0.0001639,2]
[335339071,1724127047442,-151.0,0.0001639,2]
[335339072,1724127047453,-151.0,0.0001639,2]
[335339073,1724127047463,-151.0,0.0001639,2]
[335339074,1724127047474,-151.0,0.0001639,2]
[335339075,1724127047484,-151.0,0.0001639,2]
[335339076,1724127047494,-188.32843417,0.00016399,2]
[335339077,1724127047505,-500.0,0.00016399,2]
[335339078,1724127047516,-500.0,0.00016399,2]
[335339079,1724127047526,-500.0,0.00016399,2]
[335339080,1724127047536,-260.9300905,0.00016399,2]
[335339081,1724127047547,-500.0,0.00016399,2]
[335339082,1724127047561,-34066.10407792,0.000164,2]
[335339083,1724127047573,-151.0,0.000164,2]
[335339084,1724127047582,-151.0,0.000164,2]
[335339085,1724127047593,-151.0,0.000164,2]
[335339086,1724127047605,-398.495501,0.000164,2]
[335339087,1724127047615,-398.495501,0.000164,2]
[335339088,1724127047626,-151.0,0.000164,2]
[335339089,1724127047636,-151.0,0.000164,2]
[335339090,1724127047648,-151.0,0.000164,2]
[335339091,1724127047658,-151.0,0.000164,2]
[335339092,1724127047668,-165.21133,0.000164,2]
[335339093,1724127047678,-165.21133,0.000164,2]
[335339094,1724127047689,-438.657075,0.000164,2]
[335339095,1724127047698,-438.657075,0.000164,2]
[335339096,1724127047709,-287.907591,0.000164,2]
[335339097,1724127047720,-287.907591,0.000164,2]
[335339098,1724127047729,-151.0,0.000164,2]
[335339099,1724127047738,-238.796923,0.000164,2]
[335339100,1724127047748,-151.0,0.000164,2]
[335339101,1724127047757,-238.796923,0.000164,2]
[335339102,1724127047766,-291.400001,0.000164,2]
[335339103,1724127047775,-291.400001,0.000164,2]
[335339104,1724127047784,-295.135181,0.000164,2]
[335339105,1724127047794,-295.135181,0.000164,2]
[335339106,1724127047810,-151.0,0.000164,2]
[335339107,1724127047819,-151.0,0.000164,2]
[335339108,1724127047829,-151.0,0.000164,2]
[335339109,1724127047838,-151.0,0.000164,2]
[335339110,1724127047848,-151.0,0.000164,2]
[335339111,1724127047856,-151.0,0.000164,2]
[335339112,1724127047866,-150.01,0.00016427,2]
[335339113,1724127047876,-3776.78470935,0.00016427,2]
[335339114,1724127047885,-70022.85322071,0.00016427,2]
[335339117,1724127209168,158.0,0.00021,120]
[335339128,1724127481586,5000.0,7.376e-05,2]
[335339129,1724127490454,5000.0,7.376e-05,2]
[335339130,1724127498653,5000.0,7.376e-05,2]
[335339131,1724127507188,368.02291997,7.376e-05,2]
[335339132,1724127515434,5000.0,7.376e-05,2]
[335339133,1724127530698,5000.0,7.376e-05,2]
[335339134,1724127533274,4720.37412615,7.376e-05,2]
[335339135,1724127546101,1549.32989976,7.376e-05,2]
[335339140,1724127731607,250.0,7.231e-05,2]
[335339141,1724127731831,250.0,7.251e-05,2]
[335339142,1724127732255,250.0,7.271e-05,2]
[335339143,1724127732506,250.0,7.29e-05,2]
[335339144,1724127732741,250.0,7.31e-05,2]
[335339145,1724127732970,250.0,7.33e-05,2]
[335339146,1724127733378,250.0,7.35e-05,2]
[335339147,1724127733808,250.0,7.37e-05,2]
[335339149,1724127766718,896.7649214,6.679e-05,2]
[335339150,1724127782232,11855.8785754,6.733e-05,2]
[335339152,1724127804885,8740.578429,6.725e-05,2]
[335339155,1724127969193,2620.2526947,6.711e-05,2]
[335339156,1724128014170,2382.8271525,6.631e-05,2]
[335339160,1724128152051,8874.1853654,6.668e-05,2]
[335339163,1724128159803,300.21774645,7.376e-05,2]
[335339167,1724128168387,273.37336231,7.376e-05,2]
[335339174,1724128211904,250.0,6.741e-05,2]
[335339175,1724128212118,250.0,6.76e-05,2]
[335339176,1724128212353,250.0,6.778e-05,2]
[335339177,1724128212558,250.0,6.797e-05,2]
[335339178,1724128212770,250.0,6.815e-05,2]
[335339179,1724128212982,250.0,6.834e-05,2]
[335339180,1724128213180,250.0,6.852e-05,2]
[335339181,1724128213625,250.0,6.871e-05,2]
[335339182,1724128213844,250.0,6.889e-05,2]
[335339183,1724128214070,250.0,6.908e-05,2]
[335339184,1724128214266,250.0,6.926e-05,2]
[335339185,1724128214478,250.0,6.945e-05,2]
[335339186,1724128214685,250.0,6.963e-05,2]
[335339187,1724128214916,250.0,6.982e-05,2]
[335339188,1724128215153,250.0,7e-05,2]
[335339189,1724128215355,250.0,7.019e-05,2]
[335339190,1724128215584,250.0,7.037e-05,2]
[335339191,1724128215808,250.0,7.056e-05,2]
[335339192,1724128216169,250.0,7.074e-05,2]
[335339193,1724128216235,250.0,7.093e-05,2]
[335339328,1724128240435,-300.0,7.396e-05,2]
[335339329,1724128240445,-300.0,7.396e-05,2]
[335339330,1724128240455,-24900.0,7.397e-05,2]
[335339331,1724128240465,-167.0635459,7.43e-05,2]
[335339332,1724128240475,-4270.0190717,7.528e-05,2]
[335339333,1724128240484,-1766.63770101,7.911e-05,2]
[335339334,1724128240495,-933.89722372,7.911e-05,2]
[335339335,1724128240504,-665.49707785,7.911e-05,2]
[335339336,1724128240514,-180.97200629,7.911e-05,2]
[335339337,1724128240523,-754.90482339,7.911e-05,2]
[335339338,1724128240532,-601.94985179,7.911e-05,2]
[335339339,1724128240542,-182.01777384,7.911e-05,2]
[335339340,1724128240553,-154.76012181,7.911e-05,2]
[335339341,1724128240563,-154.76012181,7.911e-05,2]
[335339342,1724128240573,-1609.29087834,7.911e-05,2]
[335339343,1724128240586,-423.08630861,7.911e-05,2]
[335339344,1724128240595,-1350.34429054,7.954e-05,2]
[335339345,1724128240606,-1466.26477138,7.954e-05,2]
[335339346,1724128240617,-223.49558008,7.954e-05,2]
[335339347,1724128240627,-154.80649189,8.019e-05,2]
[335339348,1724128240639,-420.0,8.136e-05,2]
[335339349,1724128240648,-8677.88087793,8.521e-05,2]
[335339357,1724128243345,-958.82039686,8.521e-05,2]
[335339410,1724129438379,-17667.77027035,7.397e-05,2]
[335339412,1724129438393,-737.23303483,7.397e-05,2]
[335339414,1724129438405,-5265.03277721,7.397e-05,2]
[335339416,1724129438418,-1229.96391761,7.397e-05,2]
[335339418,1724129438428,-157.894736,7.902e-05,2]
[335339421,1724129438440,-154.76012181,7.911e-05,2]
[335339423,1724129438452,-66.42927869,7.911e-05,2]
[335339484,1724129440596,-1697.32129681,7.911e-05,2]
[335339485,1724129440607,-154.76012181,7.911e-05,2]
[335339486,1724129440618,-154.76012181,7.911e-05,2]
[335339487,1724129440629,-210.26167047,7.911e-05,2]
[335339488,1724129440641,-936.44400939,7.911e-05,2]
[335339489,1724129440651,-534.91146023,7.911e-05,2]
[335339490,1724129440661,-154.76012181,7.911e-05,2]
[335339491,1724129440671,-281.76675958,7.911e-05,2]
[335339492,1724129440681,-688.74575077,7.911e-05,2]
[335339493,1724129440690,-780.13119624,7.911e-05,2]
[335339494,1724129440700,-157.894736,7.925e-05,2]
[335339495,1724129440710,-157.894736,7.947e-05,2]
[335339496,1724129440719,-157.894736,7.97e-05,2]
[335339497,1724129440729,-157.894736,7.993e-05,2]
[335339498,1724129440739,-157.894736,8.016e-05,2]
[335339499,1724129440748,-157.894736,8.039e-05,2]
[335339500,1724129440757,-157.894736,8.062e-05,2]
[335339501,1724129440767,-157.894736,8.085e-05,2]
[335339502,1724129440776,-157.894736,8.108e-05,2]
[335339503,1724129440786,-157.894736,8.13e-05,2]
[335339504,1724129440796,-157.894736,8.153e-05,2]
[335339505,1724129440805,-157.894736,8.176e-05,2]
[335339506,1724129440814,-157.894736,8.199e-05,2]
[335339507,1724129440824,-157.894736,8.222e-05,2]
[335339508,1724129440834,-157.894736,8.245e-05,2]
[335339509,1724129440844,-157.894736,8.268e-05,2]
[335339510,1724129440853,-157.894736,8.291e-05,2]
[335339511,1724129440864,-157.894736,8.314e-05,2]
[335339512,1724129440875,-23.58871381,8.521e-05,2]
[335339513,1724129440885,-2248.13135145,8.521e-05,2]
[335339514,1724129440894,-165.77081443,8.521e-05,2]
[335339515,1724129440904,-2151.16247841,8.521e-05,2]
[335339516,1724129440914,-181.75712073,8.761e-05,2]
[335339517,1724129440923,-850.86713135,8.761e-05,2]
[335339518,1724129440933,-5329.36596513,8.82e-05,2]
[335339519,1724129440947,-5329.36596513,9.203e-05,2]
[335339520,1724129440956,-600.88577429,9.429e-05,2]
[335339521,1724129440965,-5329.36596513,9.447e-05,2]
[335339522,1724129440975,-188.90271941,9.524e-05,2]
[335339523,1724129440985,-5329.36596513,9.713e-05,2]
[335339524,1724129440995,-5329.36596513,0.00010012,2]
[335339525,1724129441005,-372.1710556,0.00010081,2]
[335339526,1724129441017,-172.41624809,0.0001026,2]
[335339527,1724129441027,-811.12839366,0.00010328,2]
[335339528,1724129441037,-5329.36596513,0.00010389,2]
[335339529,1724129441046,-5329.36596513,0.00010456,2]
[335339530,1724129441057,-247.6808751,0.00010544,2]
[335339531,1724129441067,-810.66321171,0.00010544,2]
[335339532,1724129441077,-5329.36596513,0.00010732,2]
[335339533,1724129441087,-154.86257692,0.00010958,2]
[335339534,1724129441096,-260.32,0.00010959,2]
[335339535,1724129441107,-216.94,0.00010959,2]
[335339536,1724129441116,-180.78,0.00010959,2]
[335339537,1724129441126,-150.65,0.00010959,2]
[335339538,1724129441136,-753.28,0.00010959,2]
[335339539,1724129441146,-5329.36596513,0.00011048,2]
[335339540,1724129441155,-240.2347681,0.00011409,2]
[335339541,1724129441164,-202.58321353,0.00011409,2]
[335339542,1724129441173,-154.76012181,0.00011409,2]
[335339543,1724129441183,-5329.36596513,0.00011477,2]
[335339544,1724129441192,-197.50730199,0.00011621,2]
[335339545,1724129441202,-197.45989639,0.00011621,2]
[335339546,1724129441211,-206.59847366,0.00011712,2]
[335339547,1724129441221,-154.88674776,0.00011712,2]
[335339548,1724129441230,-176.12678073,0.00011712,2]
[335339549,1724129441240,-197.33180704,0.00011712,2]
[335339550,1724129441249,-157.44012948,0.00011731,2]
[335339551,1724129441259,-289.08113739,0.00011731,2]
[335339552,1724129441269,-269.30671021,0.00011731,2]
[335339553,1724129441278,-1199.9013761,0.00012232,2]
[335339554,1724129441288,-493.25192424,0.0001295,2]
[335339555,1724129441298,-520.92812469,0.00012985,2]
[335339556,1724129441308,-154.79103211,0.00012989,2]
[335339557,1724129441317,-1340.7075639,0.00013699,2]
[335339558,1724129441327,-194.83065114,0.00013699,2]
[335339559,1724129441336,-154.0822723,0.00013918,2]
[335339560,1724129441346,-153.0,0.00013918,2]
[335339561,1724129441356,-494.6465941,0.00013971,2]
[335339562,1724129441366,-738.408169,0.00014247,2]
[335339563,1724129441377,-280.99514,0.00014247,2]
[335339564,1724129441387,-158.58869617,0.00014519,2]
[335339565,1724129441396,-153.0,0.00014521,2]
[335339566,1724129441406,-153.0,0.00014521,2]
[335339567,1724129441416,-153.0,0.00014521,2]
[335339568,1724129441426,-153.0,0.00014521,2]
[335339569,1724129441435,-153.0,0.00014521,2]
[335339570,1724129441445,-207.5740843,0.00014705,2]
[335339571,1724129441454,-153.0,0.00014877,2]
[335339572,1724129441464,-153.0,0.00014877,2]
[335339573,1724129441473,-153.0,0.00014877,2]
[335339574,1724129441483,-153.0,0.00014877,2]
[335339575,1724129441492,-237.35486148,0.00015,2]
[335339576,1724129441502,-153.0,0.00015068,2]
[335339577,1724129441511,-153.0,0.00015068,2]
[335339578,1724129441521,-153.0,0.00015068,2]
[335339579,1724129441531,-153.0,0.00015068,2]
[335339580,1724129441540,-153.0,0.00015068,2]
[335339581,1724129441551,-153.0,0.00015068,2]
[335339582,1724129441561,-153.0,0.00015068,2]
[335339583,1724129441571,-207.6000865,0.00015342,2]
[335339584,1724129441582,-207.6000865,0.00015342,2]
[335339585,1724129441593,-511.9126545,0.00015527,2]
[335339586,1724129441603,-478.67831481,0.000157,2]
[335339587,1724129441612,-465.60660245,0.000158,2]
[335339588,1724129441623,-151.0,0.00015876,2]
[335339589,1724129441634,-151.0,0.00015876,2]
[335339590,1724129441645,-358.645951,0.00015876,2]
[335339591,1724129441656,-151.0,0.00015876,2]
[335339592,1724129441668,-358.645951,0.00015876,2]
[335339593,1724129441680,-191.037539,0.00015876,2]
[335339594,1724129441690,-191.037539,0.00015876,2]
[335339595,1724129441699,-151.0,0.00015876,2]
[335339596,1724129441709,-151.0,0.00015876,2]
[335339597,1724129441719,-44003.4387283,0.00015876,2]
[335339598,1724129441729,-150.603,0.00015886,2]
[335339599,1724129441739,-521.0,0.00015886,2]
[335339600,1724129441748,-1415.0,0.00015886,2]
[335339601,1724129441758,-280.390163,0.0001589,2]
[335339602,1724129441769,-207.6000865,0.0001589,2]
[335339603,1724129441779,-382.434009,0.0001589,2]
[335339604,1724129441789,-200.0,0.00015973,2]
[335339605,1724129441800,-3000.0,0.00016,2]
[335339606,1724129441810,-6522.46659517,0.00016,2]
[335339633,1724129446340,-325.33863209,8.761e-05,3]
[335339634,1724129446352,-273.37336231,8.761e-05,3]
[335339635,1724129446396,-452.04574626,8.761e-05,3]
[335339637,1724129627005,786.94,0.00017549,20]
[335339748,1724130638543,-4920.72052158,7.598e-05,2]
[335339750,1724130638553,-273.37336231,7.675e-05,2]
[335339752,1724130638562,-300.0,7.91e-05,2]
[335339754,1724130638572,-763.77346775,7.911e-05,2]
[335339757,1724130638583,-810.66321171,7.911e-05,2]
[335339759,1724130638595,-638.91273131,7.911e-05,2]
[335339761,1724130638607,-688.74575077,7.911e-05,2]
[335339763,1724130638618,-156.55873551,7.911e-05,2]
[335339766,1724130638629,-255.15136643,7.911e-05,2]
[335339769,1724130638638,-280.91711614,7.911e-05,2]
[335339771,1724130638648,-154.76012181,7.911e-05,2]
[335339773,1724130638657,-250.54221331,7.911e-05,2]
[335339776,1724130638668,-154.76012181,7.911e-05,2]
[335339779,1724130638682,-1250.99940941,7.954e-05,3]
[335339781,1724130638693,-222.59491519,0.00010619,2]
[335339784,1724130638705,-4442.7460639,0.00011571,2]
[335339786,1724130638720,-2791.16292535,0.00011571,2]
[335339879,1724130640778,-1016.96578425,0.00011571,2]
[335339880,1724130640788,-250.0,0.00012026,2]
[335339881,1724130640797,-250.0,0.00012059,2]
[335339882,1724130640806,-250.0,0.00012092,2]
[335339883,1724130640815,-163.4761783,0.00012118,2]
[335339885,1724130640825,-250.0,0.00012125,2]
[335339887,1724130640840,-250.0,0.00012158,2]
[335339888,1724130640855,-250.0,0.00012191,2]
[335339889,1724130640865,-250.0,0.00012224,2]
[335339890,1724130640874,-250.0,0.00012257,2]
[335339891,1724130640884,-250.0,0.0001229,2]
[335339892,1724130640893,-250.0,0.00012323,2]
[335339893,1724130640903,-250.0,0.00012356,2]
[335339894,1724130640912,-250.0,0.00012389,2]
[335339895,1724130640922,-250.0,0.00012422,2]
[335339896,1724130640931,-250.0,0.00012455,2]
[335339897,1724130640941,-250.0,0.00012488,2]
[335339898,1724130640950,-250.0,0.00012521,2]
[335339899,1724130640959,-250.0,0.00012554,2]
[335339900,1724130640968,-250.0,0.00012587,2]
[335339901,1724130640978,-250.0,0.0001262,2]
[335339902,1724130640987,-250.0,0.00012653,2]
[335339903,1724130640997,-153.0,0.00013425,2]
[335339904,1724130641007,-506.35601428,0.00013496,2]
[335339905,1724130641017,-521.35824671,0.00013497,2]
[335339906,1724130641027,-155.13838996,0.00013596,2]
[335339907,1724130641036,-155.19039629,0.00013597,2]
[335339908,1724130641046,-159.7036575,0.00013699,2]
[335339909,1724130641055,-194.91208609,0.00013699,2]
[335339910,1724130641065,-155.29792258,0.00013792,2]
[335339911,1724130641074,-290.38585579,0.00013971,2]
[335339912,1724130641084,-710.013681,0.00014247,2]
[335339913,1724130641094,-266.945383,0.00014247,2]
[335339914,1724130641103,-153.0,0.00015288,2]
[335339915,1724130641113,-153.0,0.00015288,2]
[335339916,1724130641123,-153.0,0.00015288,2]
[335339917,1724130641132,-153.0,0.00015288,2]
[335339918,1724130641142,-153.0,0.00015288,2]
[335339919,1724130641152,-153.0,0.00015288,2]
[335339920,1724130641162,-153.0,0.00015288,2]
[335339921,1724130641171,-153.0,0.00015288,2]
[335339922,1724130641181,-153.0,0.00015288,2]
[335339923,1724130641190,-153.0,0.00015288,2]
[335339924,1724130641200,-153.0,0.00015288,2]
[335339925,1724130641210,-150.73169166,0.00015626,2]
[335339926,1724130641220,-5329.36596513,0.0001568,2]
[335339927,1724130641230,-150.074,0.00015886,2]
[335339928,1724130641239,-266.370654,0.0001589,2]
[335339929,1724130641249,-2000.0,0.000159,2]
[335339930,1724130641259,-26440.34442794,0.0001598,2]
[335339939,1724130643671,-496.50844171,9.9e-05,2]
[335339940,1724130643686,-15362.92236396,0.0001598,2]
[335339941,1724130643697,-443.778817,0.00015989,2]
[335339942,1724130643708,-3259.77555351,0.0001599,2]
[335339961,1724130796093,2529.82343096,0.00017549,20]
[335340008,1724131634804,478.0,0.000175,20]
[335340039,1724131832645,-5000.0,9.703e-05,2]
[335340040,1724131832657,-273.37336231,9.801e-05,2]
[335340041,1724131832668,-935.82941759,0.00012782,2]
[335340042,1724131832680,-154.74467129,0.00012934,2]
[335340043,1724131832692,-154.74467129,0.00012934,2]
[335340044,1724131832704,-154.74467129,0.00012971,2]
[335340045,1724131832715,-154.74467129,0.00012971,2]
[335340046,1724131832726,-422.36012849,0.00012971,2]
[335340047,1724131832737,-155.56838858,0.00012971,2]
[335340048,1724131832749,-810.66321171,0.00012971,2]
[335340049,1724131832760,-154.74467129,0.00012971,2]
[335340050,1724131832770,-154.96980522,0.00012985,2]
[335340051,1724131832781,-624.44497217,0.00012989,2]
[335340052,1724131832791,-521.35824671,0.00012999,2]
[335340053,1724131832802,-242.96137698,0.00012999,2]
[335340054,1724131832813,-154.99671597,0.00013051,2]
[335340055,1724131832823,-408.92946582,0.00013496,2]
[335340056,1724131832833,-440.93691464,0.00013597,2]
[335340057,1724131832843,-357.3169041,0.00013597,2]
[335340058,1724131832853,-750.0,0.00014247,2]
[335340059,1724131832863,-186.613122,0.00014247,2]
[335340060,1724131832874,-893.1695793,0.00014466,2]
[335340061,1724131832883,-153.0,0.00014466,2]
[335340062,1724131832893,-415.79685701,0.00014519,2]
[335340063,1724131832903,-153.0,0.00015288,2]
[335340064,1724131832913,-153.0,0.00015288,2]
[335340065,1724131832923,-408.9517048,0.00015288,2]
[335340066,1724131832933,-306.571487,0.00015288,2]
[335340067,1724131832943,-408.9517048,0.00015288,2]
[335340068,1724131832952,-408.9517048,0.00015288,2]
[335340069,1724131832962,-301.6076881,0.00015288,2]
[335340070,1724131832971,-817.9034096,0.00015288,2]
[335340071,1724131832981,-408.9517048,0.00015288,2]
[335340072,1724131832990,-260.4950204,0.00015288,2]
[335340073,1724131832999,-408.9517048,0.00015378,2]
[335340074,1724131833008,-5329.36596513,0.00015645,2]
[335340075,1724131833019,-719.58551261,0.0001576,2]
[335340076,1724131833028,-253.052121,0.0001589,2]
[335340077,1724131833038,-2292.38703115,0.000159,2]
[335340078,1724131833048,-39550.1146746,0.0001599,2]
[335340079,1724131833058,-150.01,0.00015999,2]
[335340080,1724131833068,-3776.78470935,0.00015999,2]
[335340081,1724131833078,-2922.94551559,0.00016,2]
[335340082,1724131833088,-3000.0,0.00016,2]
[335340083,1724131833097,-23744.6780836,0.00016,2]
[335340217,1724131841623,-887.49494769,9.9e-05,2]
[335340260,1724131846777,-411.83887741,9.9e-05,2]
[335340261,1724131846788,-154.74467129,0.00012898,2]
[335340262,1724131846797,-154.74467129,0.00012934,2]
[335340263,1724131846806,-711.43806163,0.00012971,2]
[335340264,1724131846815,-247.06249853,0.00014519,2]
[335340265,1724131846825,-239.10066302,0.00015999,2]
[335340266,1724131846835,-2517.8564729,0.00015999,2]
[335340267,1724131846846,-76255.3219164,0.00016,2]
[335340268,1724131846856,-154.80182109,0.00016,2]
[335340269,1724131846865,-2900.0,0.00016,2]
[335340270,1724131846874,-160.0,0.00016013,3]
[335340271,1724131846887,-207.5740843,0.0001611,2]
[335340272,1724131846897,-207.5740843,0.0001611,2]
[335340273,1724131846906,-207.5740843,0.0001611,2]
[335340274,1724131846916,-207.5740843,0.0001611,2]
[335340275,1724131846926,-207.5740843,0.0001611,2]
[335340276,1724131846936,-500.0,0.00016198,2]
[335340277,1724131846946,-151.0,0.00016328,2]
[335340278,1724131846955,-151.0,0.00016328,2]
[335340279,1724131846965,-151.0,0.00016328,2]
[335340280,1724131846975,-151.0,0.00016328,2]
[335340281,1724131846984,-322.781356,0.00016328,2]
[335340282,1724131846994,-151.0,0.00016328,2]
[335340283,1724131847004,-322.781356,0.00016328,2]
[335340284,1724131847013,-151.0,0.00016328,2]
[335340285,1724131847026,-155.97665,0.00016328,2]
[335340286,1724131847036,-151.0,0.00016328,2]
[335340287,1724131847046,-267.373395,0.00016328,2]
[335340288,1724131847055,-350.92566,0.00016328,2]
[335340289,1724131847064,-350.92566,0.00016328,2]
[335340290,1724131847075,-151.0,0.00016328,2]
[335340291,1724131847084,-151.0,0.00016328,2]
[335340292,1724131847094,-230.326073,0.00016328,2]
[335340293,1724131847104,-230.326073,0.00016328,2]
[335340294,1724131847114,-236.108145,0.00016328,2]
[335340295,1724131847124,-151.0,0.00016328,2]
[335340296,1724131847134,-236.108145,0.00016328,2]
[335340297,1724131847145,-151.0,0.00016328,2]
[335340298,1724131847154,-233.12,0.00016328,2]
[335340299,1724131847163,-171.933785,0.00016328,2]
[335340300,1724131847173,-233.12,0.00016328,2]
[335340301,1724131847182,-171.933785,0.00016328,2]
[335340302,1724131847191,-151.0,0.00016328,2]
[335340303,1724131847200,-151.0,0.00016328,2]
[335340304,1724131847210,-39550.1146746,0.00016328,2]
[335340305,1724131847224,-18305.50283238,0.00016336,2]
[335340306,1724131847233,-151.0,0.00016336,2]
[335340307,1724131847242,-151.0,0.00016336,2]
[335340308,1724131847251,-233.12,0.00016336,2]
[335340309,1724131847261,-171.933785,0.00016336,2]
[335340310,1724131847270,-233.12,0.00016336,2]
[335340311,1724131847280,-171.933785,0.00016336,2]
[335340312,1724131847289,-151.0,0.00016336,2]
[335340313,1724131847300,-151.0,0.00016336,2]
[335340314,1724131847310,-151.0,0.00016338,2]
[335340315,1724131847320,-247.126096,0.00016338,2]
[335340316,1724131847329,-151.0,0.00016338,2]
[335340317,1724131847337,-151.0,0.00016338,2]
[335340318,1724131847346,-322.781356,0.00016338,2]
[335340319,1724131847355,-151.0,0.00016338,2]
[335340320,1724131847364,-322.781356,0.00016338,2]
[335340321,1724131847374,-151.0,0.00016338,2]
[335340322,1724131847387,-151.0,0.00016338,2]
[335340323,1724131847398,-350.92566,0.00016338,2]
[335340324,1724131847407,-350.92566,0.00016338,2]
[335340325,1724131847416,-151.0,0.00016338,2]
[335340326,1724131847425,-2042.6316363,0.00016338,2]
[335340327,1724131847435,-151.0,0.00016338,2]
[335340328,1724131847444,-230.326073,0.00016338,2]
[335340329,1724131847453,-230.326073,0.00016338,2]
[335340330,1724131847462,-236.108145,0.00016338,2]
[335340331,1724131847471,-151.0,0.00016338,2]
[335340332,1724131847480,-236.108145,0.00016338,2]
[335340333,1724131847489,-151.0,0.00016338,2]
[335340334,1724131847499,-233.12,0.00016338,2]
[335340335,1724131847509,-171.933785,0.00016338,2]
[335340336,1724131847518,-233.12,0.00016338,2]
[335340337,1724131847527,-171.933785,0.00016338,2]
[335340338,1724131847536,-151.0,0.00016338,2]
[335340339,1724131847546,-151.0,0.00016338,2]
[335340340,1724131847556,-11548.31344503,0.00016338,2]
[335340341,1724131847566,-151.0,0.0001639,2]
[335340342,1724131847576,-151.0,0.0001639,2]
[335340343,1724131847585,-151.0,0.0001639,2]
[335340344,1724131847595,-322.781356,0.0001639,2]
[335340345,1724131847604,-151.0,0.0001639,2]
[335340346,1724131847614,-322.781356,0.0001639,2]
[335340347,1724131847624,-151.0,0.0001639,2]
[335340348,1724131847635,-151.0,0.0001639,2]
[335340349,1724131847645,-350.92566,0.0001639,2]
[335340350,1724131847656,-350.92566,0.0001639,2]
[335340351,1724131847666,-39550.1146746,0.0001639,2]
[335340352,1724131847676,-151.0,0.0001639,2]
[335340353,1724131847687,-151.0,0.0001639,2]
[335340354,1724131847697,-230.326073,0.0001639,2]
[335340355,1724131847707,-230.326073,0.0001639,2]
[335340356,1724131847716,-236.108145,0.0001639,2]
[335340357,1724131847726,-151.0,0.0001639,2]
[335340358,1724131847735,-236.108145,0.0001639,2]
[335340359,1724131847744,-151.0,0.0001639,2]
[335340360,1724131847753,-233.12,0.0001639,2]
[335340361,1724131847763,-171.933785,0.0001639,2]
[335340362,1724131847772,-233.12,0.0001639,2]
[335340363,1724131847782,-171.933785,0.0001639,2]
[335340364,1724131847791,-151.0,0.0001639,2]
[335340365,1724131847801,-151.0,0.0001639,2]
[335340366,1724131847810,-500.0,0.00016399,2]
[335340367,1724131847819,-234.21916947,0.00016399,2]
[335340368,1724131847829,-302.71584562,0.00016399,2]
[335340369,1724131847838,-387.84745739,0.00016399,2]
[335340370,1724131847848,-500.0,0.00016399,2]
[335340371,1724131847858,-500.0,0.00016399,2]
[335340372,1724131847867,-500.0,0.00016399,2]
[335340373,1724131847876,-500.0,0.00016399,2]
[335340374,1724131847886,-500.0,0.00016399,2]
[335340375,1724131847896,-500.0,0.00016399,2]
[335340376,1724131847906,-500.0,0.000164,2]
[335340377,1724131847916,-6939.91971635,0.000164,2]
[335340463,1724133031761,-2807.07757102,9.415e-05,2]
[335340470,1724133031825,-2192.92242898,9.415e-05,2]
[335340472,1724133031835,-198.31,0.00010959,2]
[335340474,1724133031844,-165.26,0.00010959,2]
[335340476,1724133031854,-184.80847863,0.00010959,2]
[335340478,1724133031867,-641.52152137,0.00010959,2]
[335340480,1724133031877,-300.0,0.00012781,2]
[335340482,1724133031886,-103.53203888,0.00012782,2]